{"text_format":"1","workbook":"xlsx","n_sheets":1,"sheets":["Rozpočet 2020"],"not_rendered":{"charts":0,"images":0,"macros":0,"external_links":0,"defined_names":1,"comments":0,"pivot_tables":0},"unopened":[],"bounds":{"document_bytes":16777216,"sheet_cells":100000,"rows_first":2000,"rows_last":500,"rows_between":2000,"halvings":0,"cell_chars":16384,"cell_head_chars":4096},"cells_cut":0,"cells_raw":0,"read":"whole","date_system":"1900"}

{"sheet":"Rozpočet 2020","index":0,"n_rows":93,"n_cols":12,"rows_kept":93,"cut":false,"hidden":false,"merged":[[6,3,6,9],[35,3,35,9],[71,3,71,9],[87,0,87,16383],[84,3,84,4],[85,3,85,4]]}
[null,"Obec Citice"]
[null,"Rozpočtové opatření č. 8/2020"]
[null,"(v Kč)"]
[]
[null,"Příjmy"]
[]
[null," Příjmy","Rozpočet schválený","Rozpočtová opatření",null,null,null,null,null,null,null,"Rozpočet po změnách"]
[null,null,null,1,2,3,4,"5","6","7","8"]
[null," Daně z příjmů,zisku,kapitálových výnosů,zboží a služeb",12454430,null,null,null,-1138750,null,null,null,null,{"$f":"SUM(C9:K9)","v":11315680}]
[null," Daně a poplatky z vybraných činností a služeb",238000,null,null,null,null,null,null,null,null,{"$f":"SUM(C10:K10)","v":238000}]
[null," Majetkové daně",420000,null,null,null,null,null,null,null,null,420000]
[null," Přijaté splátky půjčených prostředků",132000,null,null,null,null,null,null,null,null,132000]
[null," Přijaté transfery-v tom:",1905600,null,null,251290,1522087,null,15691,null,-1234821,2459847]
[null,"neinv.transf.ze SR-úř.prác..       300 179 Kč",null,null,null,null,null,null,null,null,null,0]
[null,"inv.,nein.transfer od SFŽP….   210 000 Kč   ",null,null,null,null,null,null,null,null,null,0]
[null,"neinv.transf.ze st.rozpočtu… .   235 600 Kč",null,null,null,null,null,null,null,null,null,0]
[null,"neinv.transf.ze SR-MŠMT…..  251 290 Kč",null,null,null,null,null,null,null,null,null,0]
[null,"neinv.transf.ze SR-konpen.bonus 1 138 750",null,null,null,null,null,null,null,null,null,0]
[null,"neinv.transf.ze SR-volby kraj…..26 691 Kč",null,null,null,null,null,null,null,null,null,0]
[null,"inv.transf.od Karl.kraje.…        277 337 Kč",null,null,null,null,null,null,null,null,null,0]
[null,"neinv.transf.od Karl.kraje……..  20 000 Kč",null,null,null,null,null,null,null,null,null,0]
[null," Předškolní zařízení",23957,null,null,null,null,null,null,null,null,23957]
[null," Záležitosti kultury",220000,null,null,null,null,null,null,null,null,220000]
[null," Tělovýchovná činnost",25000,null,null,null,null,null,null,null,null,25000]
[null," Bytové hospodářství",619000,null,null,null,null,null,null,null,null,619000]
[null," Nebytové hospodářství",110600,null,null,null,null,null,null,null,null,110600]
[null," Pohřebnictví",13000,null,null,null,null,null,null,null,null,13000]
[null," Komunální služby",86770,null,null,null,null,null,null,217000,null,303770]
[null," Sběr a svoz odpadů",540000,null,null,null,null,null,null,null,null,540000]
[null," Bezpečnost a veřejný pořádek",3000,null,null,null,null,null,null,null,null,3000]
[null," Příjmy z finančních operací",130000,null,null,null,null,null,null,null,null,130000]
[null," Celkem",{"$f":"SUM(C9:C31)","v":16921357},0,0,251290,383337,0,15691,217000,-1234821,{"$f":"SUM(C32:K32)","v":16553854}]
[]
[null,"Výdaje"]
[]
[null,"Výdaje","Rozpočet schválený","Rozpočtová opatření",null,null,null,null,null,null,null,"Rozpočet po změnách"]
[null,null,null,1,2,3,4,"5","6","7","8"]
[null," Zvláštní veterinární péče",12000,null,null,null,null,null,null,null,null,{"$f":"SUM(C38:K38)","v":12000}]
[null," Pozemní komunikace",1189500,null,null,null,null,null,null,null,null,1189500]
[null," Dopravní obslužnost",400000,null,null,null,80000,null,null,null,null,480000]
[null," Odvádění a čistění odpadních vod",1015000,null,null,null,null,null,null,null,null,1015000]
[null," Předškolní zařízení - v tom",769957,null,null,251290,null,null,null,null,null,1021247]
[null," příspěvek na provoz …..713 957,00",null,null,null,null,null,null,null,null,null,0]
[null," Základní školy",10000,null,null,null,null,null,null,null,null,10000]
[null," Činnosti knihovnické",128000,null,null,null,null,null,null,null,null,128000]
[null," Záležitosti kultury",781000,null,null,null,null,null,null,null,null,781000]
[null," Ochrana památek",70000,null,null,null,null,null,null,null,null,70000]
[null," Sdělovací prostředky",100000,null,null,null,null,null,null,null,null,100000]
[null," Sbor pro občanské záležitosti",140000,null,null,null,null,null,null,null,null,140000]
[null," Tělových.činnost-provoz Citice č.p. 117",385000,null,null,null,null,null,null,null,null,385000]
[null," Tělovýchovná činnost",1210000,null,null,null,null,null,null,null,null,1210000]
[null," Bytové hospodářství",1168000,null,null,null,730000,null,null,null,null,1898000]
[null," Nebytové hospodářství",403400,null,null,null,null,null,null,null,null,403400]
[null," Veřejné osvětlení",595000,null,310000,null,null,null,null,121000,null,1026000]
[null," Pohřebnictví",283000,null,null,null,null,null,null,null,null,283000]
[null," Komunální služby",1278600,null,null,null,null,null,null,null,null,1278600]
[null," Změny technologií vytápění",1434400,null,null,null,null,null,null,null,-1220000,214400]
[null," Nakládání s odpady",700000,null,null,null,null,null,null,null,null,700000]
[null," Péče o vzhled obce a veřejnou zeleň",1451000,null,null,null,98000,null,null,null,-14821,1534179]
[null," Krizová opatření",50000,null,null,null,null,null,null,null,null,50000]
[null," Záležitosti požární ochrany",50000,null,null,null,null,null,null,null,null,50000]
[null," Zastupitelstvo obce",1126000,null,null,null,null,null,null,null,null,1126000]
[null," Volby do zastupitelstev krajů",null,null,null,null,31000,null,-4309,null,null,26691]
[null," Činnost místní správy",2505000,null,null,null,null,null,null,null,null,2505000]
[null," Finanční operace",279430,null,null,null,null,null,null,null,null,279430]
[null," Celkem",{"$f":"SUM(C38:C65)","v":17534287},0,310000,251290,939000,0,-4309,121000,-1234821,17916447]
[]
[null,"Financování-převod z termínovaných vkladů na BÚ,spoř.účet (položka 8117)",null,null,null,6000000,null,33000,null,null,null,{"$f":"SUM(C68:K68)","v":6033000}]
[null,"Financování-převod na termínované vklady (položka 8118)",null,2000000,null,null,null,83000,null,null,null,{"$f":"SUM(C69:K69)","v":2083000}]
[]
[null,"Rekapitulace:"]
[null,"Bilance","Rozpočet schválený","Rozpočtová opatření",null,null,null,null,null,null,null,"Rozpočet po změnách"]
[null,null,null,1,2,3,4,"5","6","7","8"]
[null," Příjmy",{"$f":"C32","v":16921357},0,0,251290,383337,0,15691,217000,-1234821,{"$f":"SUM(C74:K74)","v":16553854}]
[null," Výdaje",{"$f":"C66","v":17534287},0,310000,251290,939000,0,-4309,121000,-1234821,{"$f":"SUM(C75:K75)","v":17916447}]
[null," Rozdíl",{"$f":"C74-C75","v":-612930},0,-310000,0,-555663,0,20000,96000,0,{"$f":"SUM(C76:K76)","v":-1362593}]
[]
[null,"Financování-převod z termínovaných vkladů na BÚ,spoř.účet (položka 8117)",null,null,null,6000000,null,33000,null,null,null,{"$f":"SUM(C78:K78)","v":6033000}]
[null,"Financování-převod na termínované vklady (položka 8118)",null,2000000,null,null,null,83000,null,null,null,{"$f":"SUM(C79:K79)","v":2083000}]
[]
["    Počáteční stav BÚ a pokladny k 1.1.2020 …….…..…….…………. 3 849 285,03 Kč"]
[]
["    Počáteční stav termínovaných vkladů k 1.1.2020 …………………. 10 032 718,56 Kč"]
[]
[null,null,null,"Václav Mach"]
[null,"V Citicích dne 30.12.2020",null,"    starosta "]
[null,"Současně byla provedena předběžná řídící kontrola. "]
["     Příkazce operace: Václav Mach, starosta obce "]
[null,"Zpracoval: Martina Baborovská"]
[]
[null,"Vyvěšeno: "]
[]
[null,"Sejmuto: "]